Cogmind - Beta 13 X2 @@@ ROGUE MODE // 2024.01.22 @ 19:38:19 Player: arkn Result: Destroyed by S-43 Plague with Heavy Machine Gun Performance ------------- Evolutions (6) 3000 Regions Visited (14) 2800 Robots Destroyed (179) 895 Value Destroyed (7053) 7053 Prototype IDs (34) 680 Alien Tech Used (3) 600 Bonus (1042) 1042 TOTAL SCORE: 16070 Bonus ------- High Alert Combat Kills 517 Follower Combat Kills 543 Aligned with FarCom 300 Met Zhirov 300 Friendly Fire -618 Cogmind --------- Core Integrity 0/1150 Matter 300/300 Energy 3/100 System Corruption 14% Temperature Cool (2) Movement Flying (117) Ox1 Location -3/Proximity Caves Parts ------- > --- POWER (2) -------- (None) > --- PROPULSION (4) --- Xenon Bombardment Thruster Xenon Bombardment Thruster > --- UTILITY (9) ------ Scrap Engine Machine Analyzer Advanced Signal Interpreter Advanced Melee Analysis Suite Experimental Core Shielding Makeshift Light Armor Plating Improved Remote Shield Advanced Hacking Suite > --- WEAPON (4) ------- Power Maul Makeshift Axe > --- INVENTORY (5) ---- Advanced Energy Well (500) Advanced Transmission Jammer Advanced ECM Suite Peak State ------------ > --- POWER ------------ Antimatter-Fission Reactor > --- PROPULSION ------- Treaded Myomer-FPA Exoskeleton > --- UTILITY ---------- Armored Scrap Engine High-capacity Storage Unit Machine Analyzer Advanced Signal Interpreter Advanced Targeting Computer Improved Medium Armor Plating Layered Medium Armor Plating High-powered Tractor Beam > --- WEAPON ----------- Heavy Disruptor Cannon Enhanced Gauss Cannon Hyp. Ballistic Coil Construct/G > --- INVENTORY -------- Power Amplifier Compact Matter Pod Advanced Weight Redist. System Machine Analyzer Advanced Signal Interpreter Advanced Transmission Jammer Improved Thermal Defense Suite Improved Component Analysis Suite Improved Recalibrator Mini Drone Bay Advanced Drone Bay Precision Grenade Launcher Power Maul Great Axe [Rating: 109] Favorites ----------- Power Improved Deuterium Engine Engine Improved Deuterium Engine Power Core Light Nuclear Core Reactor Constructs Propulsion Advanced Treads Treads Advanced Treads Leg Improved Titanium Leg Hover Unit Gravmag System Flight Unit Xenon Bombardment Thruster Utility High-capacity Storage Unit Device Armored Scrap Engine Storage High-capacity Storage Unit Processor Machine Analyzer Hackware Advanced Hacking Suite Protection Light Armor Plating Weapon Power Maul Energy Gun Beamcaster Energy Cannon HERF Cannon Ballistic Gun Minigun Ballistic Cannon Advanced Assault Cannon Launcher Precision Grenade Launcher Special Weapon Mining Laser Impact Weapon Power Maul Slashing Weapon Great Axe Build | -11 -10 -10 -10 -9 -8 -7 -7 -7 -5 -4 -4 -4 -4 -3 ------- Run | Yrd Mat Min Exi Min Mat Fac Sto Rec Fac Fac Upp Upp Zhi Pro Slots Evolved 12 | . . . . . 4 2 . . 4 2 . . . . Power 1 | . . . . . . 1 . . . . . . . . Propulsion 2 | . . . . . 1 1 . . . . . . . . Utility 7 | . . . . . 2 . . . 3 2 . . . . Weapon 2 | . . . . . 1 . . . 1 . . . . . Parts Attached 203 | . 17 6 2 2 51 30 13 4 17 15 5 15 4 22 Power 19 | . 2 1 . . 5 3 4 1 1 1 . . 1 . Engine 11 | . 1 . . . 3 3 3 1 . . . . . . Core 6 | . 1 1 . . 2 . 1 . 1 . . . . . Reactor 2 | . . . . . . . . . . 1 . . 1 . Propulsion 48 | . 3 . 1 . 19 12 4 2 1 1 . . . 5 Treads 24 | . 2 . 1 . 3 11 4 2 1 . . . . . Leg 15 | . 1 . . . 13 1 . . . . . . . . Wheel . | . . . . . . . . . . . . . . . Hover 3 | . . . . . 3 . . . . . . . . . Flight 6 | . . . . . . . . . . 1 . . . 5 Utility 66 | . 5 1 1 . 12 3 1 1 10 6 3 10 2 11 Device 38 | . 4 . . . 8 2 . 1 5 3 2 7 . 6 Storage 6 | . 1 . 1 . 1 1 . . . . . 1 1 . Processor 7 | . . . . . 1 . . . 2 1 . 2 . 1 Hackware 1 | . . . . . . . . . . . . . . 1 Protection 14 | . . 1 . . 2 . 1 . 3 2 1 . 1 3 Artifact . | . . . . . . . . . . . . . . . Weapon 70 | . 7 4 . 2 15 12 4 . 5 7 2 5 1 6 Energy Gun 10 | . 1 2 . 1 2 2 . . 1 . . . . 1 Energy Cannon 4 | . . . . . 1 . . . . 2 1 . . . Ballistic Gun 14 | . 3 1 . 1 3 3 2 . 1 . . . . . Ballistic Cannon 14 | . . . . . 3 2 . . 3 2 . 2 . 2 Launcher 7 | . . 1 . . 2 . 1 . . 1 1 1 . . Special Weapon 3 | . 3 . . . . . . . . . . . . . Impact Weapon 6 | . . . . . . 2 1 . . 1 . 1 1 . Slashing Weapon 12 | . . . . . 4 3 . . . 1 . 1 . 3 Piercing Weapon . | . . . . . . . . . . . . . . . Special Melee Weapon . | . . . . . . . . . . . . . . . Unidentified Prototypes 9 | . . . . . 1 1 1 . . . . 1 5 . Corrupted Parts 1 | . . . . . . . . . . . . . . 1 System Corruption 1 | . . . . . . . . . . . . . . 1 Parts Lost 58 | . 2 1 . . 9 1 4 . 3 4 1 21 . 12 Power 8 | . 1 . . . 1 . 1 . . 1 . 2 . 2 Propulsion 10 | . . . . . 2 . . . 2 . . 3 . 3 Utility 22 | . 1 . . . 3 . 1 . 1 1 1 11 . 3 Weapon 18 | . . 1 . . 3 1 2 . . 2 . 5 . 4 Highest Loss Streak 12 | . 1 1 . . 8 1 2 . 3 2 1 12 . 6 To Critical Strikes 5 | . . . . . . . . . 2 2 . 1 . . Average Slot Usage (%) 82 | . 98 100 71 82 96 99 99 92 85 78 72 57 43 72 Engine 4 | . 3 . . . 4 15 12 7 3 3 4 2 . . Core 4 | . 10 14 14 14 4 . 1 7 7 . . . . . Treads 12 | . 13 28 28 28 10 19 30 30 19 2 . 2 . . Leg 4 | . 14 . . . 13 10 . . . 1 3 . . . Device 11 | . 12 6 . . 14 14 10 7 8 12 14 15 15 11 Storage 7 | . 14 14 14 14 10 7 7 7 5 5 5 4 5 . Processor 8 | . . . . . 3 7 7 7 8 15 15 12 15 15 Protection 4 | . . 7 14 14 4 . 3 . 4 7 5 . 2 5 Energy Gun 3 | . 6 18 . 5 7 . . . 3 1 . . . 2 Ballistic Gun 7 | . 17 9 . 5 7 15 17 15 5 4 5 . . . Ballistic Cannon 3 | . . . . . 6 . 4 . 6 5 5 2 . 1 Impact Weapon 1 | . . . . . . . . 7 5 4 . 2 2 5 Slashing Weapon 2 | . . . . . 5 5 . . . . 5 7 . 7 Naked Turns . | . . . . . . . . . . . . . . . Heaviest Build 112 | 10 29 33 48 56 78 74 79 70 99 112 96 96 59 72 Greatest Support 101 | 20 40 40 40 40 60 90 94 94 101 67 69 69 3 24 Greatest Overweight (x) 23 | . 1 . 1 1 6 3 . . 2 4 2 20 19 23 Average Overweight (x) 1 | . . . . 1 1 . . . . 1 1 3 15 1 Largest Inventory Capacity 20 | 8 15 15 20 20 20 20 20 20 20 20 20 20 20 20 Average Capacity 18 | 8 13 15 17 20 20 20 20 20 20 20 20 19 20 5 Most Carried 20 | 7 15 15 19 20 20 20 20 20 20 20 20 20 20 18 Average Carried 17 | 6 11 14 16 18 18 19 19 19 19 18 18 15 18 4 Final Capacity 20 | 8 15 15 20 20 20 20 20 20 20 20 20 20 20 5 Final Carried 20 | 7 15 15 19 19 20 20 20 20 20 15 20 14 19 3 Scrap Engine Consumption 77 | . . . . . . . . 10 25 32 5 3 1 1 Constructs Created 4 | . . . . . . . . . 3 . . . . 1 Constructs Modified 28 | . . . . . . . . . 5 18 4 1 . . Class Distribution -------------------- 52% | Mutant 24% | Skirmisher 8% | Gunner 3% | Scavenger-Skirmisher Dominant Class ---------------- Mutant | -10/Materials Mutant | -10/Mines Mutant | -10/Exiles Mutant | -9/Mines Mutant | -8/Materials Mutant | -7/Factory Skirmisher | -7/Storage Mutant | -7/Recycling Skirmisher | -5/Factory Skirmisher | -4/Factory Gunner | -4/Upper Caves Mutant | -4/Upper Caves Mutant | -4/Zhirov Derelict-Gladiator | -3/Proximity Caves Resources | -11 -10 -10 -10 -9 -8 -7 -7 -7 -5 -4 -4 -4 -4 -3 ----------- Run | Yrd Mat Min Exi Min Mat Fac Sto Rec Fac Fac Upp Upp Zhi Pro Matter Collected 7604 | 206 173 354 . 40 1596 542 941 467 638 1109 500 450 281 307 Remotely 2047 | . 116 . . . 373 . . . 17 1048 493 . . . Salvage Created 7644 | 114 366 58 . . 2048 761 997 194 742 839 522 364 431 208 Parts 379 | 3 28 1 . . 102 39 62 13 51 43 17 4 2 14 Haulers Intercepted 10 | . 1 . . . 6 . 3 . . . . . . . Recyclers Shooed 11 | 1 . . . . 3 . . 1 4 2 . . . . Parts Field Recycled . | . . . . . . . . . . . . . . . Retrieved Matter . | . . . . . . . . . . . . . . . Parts Self-Destructed 23 | . . . . . . . . . . . 10 4 1 8 Prevented 2 | . . . . . . . . . . . . 2 . . Kills | -11 -10 -10 -10 -9 -8 -7 -7 -7 -5 -4 -4 -4 -4 -3 ------- Run | Yrd Mat Min Exi Min Mat Fac Sto Rec Fac Fac Upp Upp Zhi Pro Combat Hostiles Destroyed 135 | . 10 10 . . 32 7 18 3 16 11 13 9 . 6 Melee 6 | . . . . . . . . . 1 . 1 . . 4 Guns 59 | . 10 1 . . 13 6 12 3 10 2 1 . . 1 Cannons 38 | . . . . . 16 1 3 . 4 8 3 2 . 1 AOE 28 | . . 9 . . 3 . 3 . . . 8 5 . . Classes Destroyed 19 | 2 5 2 . . 6 2 . . . . 2 . . . Worker 6 | . . . . . 2 1 1 . 1 1 . . . . Builder 6 | . 1 . . . 2 . 1 . 1 1 . . . . Tunneler 2 | 1 . . . . . . . . . 1 . . . . Hauler 10 | . 1 . . . 6 . 3 . . . . . . . Recycler 14 | 1 1 . . . 6 4 . . . 2 . . . . Mechanic 2 | . . . . . 1 . 1 . . . . . . . Operator 2 | . . . . . . 1 1 . . . . . . . Turret 1 | . . . . . 1 . . . . . . . . . Watcher 10 | . 1 . . . 4 . 1 . 4 . . . . . Swarmer 24 | . 6 . . . . . . . 8 . 3 1 . 6 Grunt 49 | . 4 1 . . 21 2 9 . 3 1 4 4 . . Brawler 3 | . . . . . . . . . . . 3 . . . Duelist 1 | . . . . . . . . . . . 1 . . . Sentry 22 | . . . . . 7 3 6 3 . 1 1 1 . . Demolisher 1 | . . 1 . . . . . . . . . . . . Hunter 13 | . . . . . 3 1 1 . . 5 . 3 . . Programmer 13 | . . . . . . 1 2 . 5 4 1 . . . Heavy 1 | . . . . . 1 . . . . . . . . . Assembled 9 | . . 9 . . . . . . . . . . . . Best Kill Streak 12 | 2 4 9 . . 5 3 12 1 5 3 11 4 . 4 Combat Bots Only 11 | . 3 9 . . 4 3 7 1 4 2 11 4 . 4 Max Kills in Single Turn 4 | 1 1 4 . . 4 1 3 1 2 1 3 1 . 1 Gunslinging . | . . . . . . . . . . . . . . . Exploded 4 | . . 4 . . 3 . 2 . . . 3 1 . . Melee 1 | . . . . . . . . . 1 . 1 . . 1 Uniques/NPCs Destroyed . | . . . . . . . . . . . . . . . Combat | -11 -10 -10 -10 -9 -8 -7 -7 -7 -5 -4 -4 -4 -4 -3 -------- Run | Yrd Mat Min Exi Min Mat Fac Sto Rec Fac Fac Upp Upp Zhi Pro Hostile Shots Fired 1254 | . 52 19 . . 180 92 232 90 72 145 33 226 . 113 Missed 392 | . 14 6 . . 40 43 87 35 17 38 9 72 . 31 Damage Taken 14340 | . 404 234 . . 2707 518 1680 410 1130 2536 439 2663 . 1619 Core 2072 | . 77 49 . . 381 88 178 16 138 521 70 355 . 199 Absorbed by Shields 400 | . . . . . . . . . . 20 . 139 . 241 Redirected to Shielding 100 | . . . . . . . . . . . . . . 100 Regen/Repaired (Parts) 1150 | . . . . . 89 . . . 70 681 191 119 . . Core Remaining (%) 64 | 100 . . . 49 30 . . 59 86 . . . . . Volleys Fired 443 | 6 49 7 . . 121 38 60 13 59 44 12 24 . 10 Largest 3 | 2 2 2 . . 3 3 3 2 3 3 3 2 . 1 Hottest 196 | 60 100 73 . . 163 125 101 56 167 196 133 145 . 65 Shots Fired 1016 | 12 92 13 . . 306 94 154 27 139 103 32 34 . 10 Gun 652 | 12 86 8 . . 203 91 106 27 76 30 10 . . 3 Cannon 325 | . . . . . 100 3 45 . 63 72 12 23 . 7 Launcher 33 | . . 5 . . 3 . 3 . . 1 10 11 . . Special 6 | . 6 . . . . . . . . . . . . . Kinetic 777 | 6 65 2 . . 207 89 151 27 117 78 21 7 . 7 Thermal 123 | 6 27 2 . . 83 5 . . . . . . . . Explosive 33 | . . 5 . . 3 . 3 . . 1 10 11 . . Electromagnetic 83 | . . 4 . . 13 . . . 22 24 1 16 . 3 Robot Hit Streak 18 | 4 7 3 . . 12 17 18 14 8 6 10 8 . 2 Robot Miss Streak 8 | 1 3 3 . . 8 3 3 2 5 5 1 2 . 3 Penetration Max 1 | . . . . . 1 . 1 . 1 1 1 . . . Secondary Targets 3 | . 1 . . . 2 . . . . . . . . . Max Gunslinging Chain 1 | . 1 . . . 1 . . . . . . . . . Shots Hit Robots 628 | 7 58 4 . . 202 63 85 21 63 56 16 36 7 10 Core Hits 428 | 4 27 27 . . 161 26 49 8 35 30 30 22 1 8 Critical Kills 9 | . . . . . . . 1 1 2 2 1 . 1 1 Critical Parts Destroyed 14 | . . . . . . 1 1 . 2 4 . 2 3 1 Critical Strikes 41 | . . . . . 1 1 7 1 6 10 5 4 4 2 Burn 1 | . . . . . 1 . . . . . . . . . Destroy 15 | . . . . . . 1 3 1 2 5 1 . . 2 Blast 13 | . . . . . . . 4 . 2 2 4 1 . . Corrupt 2 | . . . . . . . . . . 2 . . . . Smash 9 | . . . . . . . . . 2 1 . 2 4 . Sever 1 | . . . . . . . . . . . . 1 . . Melee Attacks 120 | . . . . . 18 29 2 . 22 11 4 13 7 14 Impact 45 | . . . . . . . 2 . 22 10 . 3 7 1 Slashing 75 | . . . . . 18 29 . . . 1 4 10 . 13 Piercing . | . . . . . . . . . . . . . . . Sneak Attacks 10 | . . . . . 6 3 . . . . 1 . . . Combat Hostiles . | . . . . . . . . . . . . . . . Follow-up Attacks . | . . . . . . . . . . . . . . . Damage Inflicted 19363 | 65 529 741 . . 4874 1297 2313 382 1989 2378 1618 2098 756 323 Guns 6923 | 65 503 56 . . 2364 1006 1034 379 1000 334 143 . . 39 Cannons 5566 | . . . . . 1670 56 649 . 697 1662 303 474 . 55 Explosions 4468 | . . 673 . . 384 . 600 . 172 336 1100 1203 . . Melee 2259 | . . . . . 416 235 . . 94 42 72 421 756 223 Ramming 123 | . 2 12 . . 40 . 30 3 26 4 . . . 6 Kinetic 9617 | 42 359 33 . . 2761 978 1683 379 1437 1345 446 99 . 55 Thermal 1623 | 23 168 13 . . 1109 84 . . 136 90 . . . . Explosive 4206 | . . 673 . . 384 . 600 . . 246 1100 1203 . . Electromagnetic 1515 | . . 10 . . 144 . . . 296 651 . 375 . 39 Impact 1009 | . . . . . 20 . . . 94 42 . 97 756 . Slashing 1270 | . . . . . 416 235 . . . . 72 324 . 223 Piercing . | . . . . . . . . . . . . . . . Highest Corruption 14 | . 8 8 8 8 . . 4 4 5 11 11 11 11 14 Average Corruption 8 | . 5 8 8 8 . . 3 4 3 8 11 11 11 11 Corruption Purged 5 | . . . . . . . . . 5 . . . . . Corruption Blocked . | . . . . . . . . . . . . . . . Effects 378 | . 6 32 36 5 . . 16 18 21 31 73 46 70 24 Message Errors 77 | . 1 8 9 . . . 2 3 5 6 14 9 15 5 Matter Fused 92 | . 2 6 10 1 . . 3 2 3 7 24 9 21 4 Heat Flow Errors 46 | . . 2 6 2 . . 3 1 2 3 5 7 10 5 Energy Discharges 50 | . 1 2 6 1 . . 5 3 2 2 13 8 7 . Parts Rejected 3 | . . . . . . . . 1 1 1 . . . . Parts Fused 6 | . . 1 . . . . . . . 1 3 . . 1 Data Loss (minor) 60 | . 1 7 3 1 . . 1 6 2 5 7 5 15 7 Data Loss (major) 16 | . . 1 1 . . . 1 1 3 3 2 2 1 1 Misfires 16 | . 1 4 . . . . . 1 3 2 3 2 . . Alerts 8 | . . 1 1 . . . . . . . 1 4 1 . Misdirections 1 | . . . . . . . . . . . . . . 1 Weapon Failures 3 | . . . . . . . 1 . . 1 1 . . . Overload Shots . | . . . . . . . . . . . . . . . Overflow Damage 1046 | . . 11 . . 60 72 30 . 109 88 11 123 535 7 Projectiles 47 | . . . . . . . 21 . 15 11 . . . . Explosions 92 | . . 11 . . . . 9 . . 35 11 26 . . Melee 907 | . . . . . 60 72 . . 94 42 . 97 535 7 Knockbacks 56 | . . . . . 30 1 3 . 10 9 . 3 . . Impact 2 | . . . . . . . . . 1 1 . . . . Kinetic 48 | . . . . . 25 1 3 . 9 7 . 3 . . Secondary 6 | . . . . . 5 . . . . 1 . . . . Self-Inflicted Damage 169 | . . 16 . . 36 . 29 . 16 69 . . . 3 Shots 5 | . . 1 . . 1 . 1 . 1 1 . . . . Rammed 10 | . . 2 . . . . 2 1 4 . . . . 1 Targets Rammed 21 | . 2 2 . . 6 . 3 1 5 1 . . . 1 Kicked 9 | . 2 . . . 6 . . . . 1 . . . . Crushed 2 | . . . . . . . 1 . 1 . . . . . Highest Temperature 662 | 40 98 193 243 272 279 133 138 247 594 662 279 404 254 231 Average Temperature 116 | 17 27 62 106 115 63 28 16 52 160 200 104 175 108 108 Received Heat Transfer 2513 | . 153 20 . . 1107 129 540 114 129 30 83 208 . . Effects 48 | . . . . . 3 . . . 13 22 . 8 . 2 Shutdowns 10 | . . . . . . . . . 4 5 . 1 . . Energy Bleed 8 | . . . . . 1 . . . 2 3 . 2 . . Interference 10 | . . . . . 2 . . . . 4 . 2 . 2 Matter Decay 7 | . . . . . . . . . 2 4 . 1 . . Short Circuit 1 | . . . . . . . . . 1 . . . . . Damage (minor) 4 | . . . . . . . . . 1 1 . 2 . . Damage (major) 6 | . . . . . . . . . 3 3 . . . . Damage (core) 2 | . . . . . . . . . . 2 . . . . Siege Activations . | . . . . . . . . . . . . . . . Robots Corrupted 4 | . . . . . . . . . 1 1 . 2 . . Combat Hostiles 4 | . . . . . . . . . 1 1 . 2 . . Parts Fried 10 | . . . . . . . . . 3 4 . 2 1 . Impact Corruptions 20 | . . . . . 1 . . . 3 1 . 3 12 . Robots Melted . | . . . . . . . . . . . . . . . Combat Hostiles . | . . . . . . . . . . . . . . . Parts Melted 4 | . . . . . 3 . . . . 1 . . . . Heat Transferred 2857 | 50 387 37 . . 2035 148 . . 100 100 . . . . Parts Sabotaged . | . . . . . . . . . . . . . . . Parts Stolen . | . . . . . . . . . . . . . . . Parts Stripped . | . . . . . . . . . . . . . . . Power Chain Reactions 2 | . . . . . . . . . . 2 . . . . Missiles Intercepted . | . . . . . . . . . . . . . . . Alert | -11 -10 -10 -10 -9 -8 -7 -7 -7 -5 -4 -4 -4 -4 -3 ------- Run | Yrd Mat Min Exi Min Mat Fac Sto Rec Fac Fac Upp Upp Zhi Pro Peak Influence 846 | 10 286 32 . . 642 686 846 257 593 456 . . . . Initial 282 | . 6 5 . . . 280 282 209 32 269 . . . . Average 268 | 8 105 14 . . 313 510 596 172 125 270 . . . . Maximum Alert Level 3 | . 1 . . . 2 2 3 1 2 2 . . . . Low Security (%) 45 | 100 90 100 . 100 39 . . 38 83 5 . . . . Level 1 25 | . 9 . . . 18 20 17 61 12 92 . . . . Level 2 26 | . . . . . 41 79 47 . 3 2 . . . . Level 3 2 | . . . . . . . 35 . . . . . . . Level 4 . | . . . . . . . . . . . . . . . Level 5 . | . . . . . . . . . . . . . . . High Security . | . . . . . . . . . . . . . . . Max Security . | . . . . . . . . . . . . . . . Squads Dispatched 36 | . . . . . 8 8 6 . 6 8 . . . . Investigation 12 | . . . . . 4 4 1 . 2 1 . . . . Extermination 8 | . . . . . . 2 1 . 2 3 . . . . Reinforcement 9 | . . . . . 3 1 3 . 1 1 . . . . Assault 3 | . . . . . 1 . 1 . 1 . . . . . Garrison 4 | . . . . . . 1 . . . 3 . . . . Intercept . | . . . . . . . . . . . . . . . Searches Triggered . | . . . . . . . . . . . . . . . Construction Impeded 3 | . . . . . . . 1 . 1 1 . . . . Haulers Reinforced 1 | . . . . . . . 1 . . . . . . . Active Scanning Responses . | . . . . . . . . . . . . . . . Cargo Convoy Interrupts . | . . . . . . . . . . . . . . . Stealth | -11 -10 -10 -10 -9 -8 -7 -7 -7 -5 -4 -4 -4 -4 -3 --------- Run | Yrd Mat Min Exi Min Mat Fac Sto Rec Fac Fac Upp Upp Zhi Pro Distress Signals 9 | . 3 . . . 3 . 2 . 1 . . . . . Communications Jammed . | . . . . . . . . . . . . . . . Distress Signals . | . . . . . . . . . . . . . . . Times Spotted 209 | . 16 19 . . 46 18 30 3 24 19 11 11 . 12 Peak Tracking Total 16 | . 4 16 . . 7 4 7 1 3 5 7 5 . 5 Tactical Retreats 12 | . 2 1 . . . 3 2 . 1 . 1 1 . 1 Traps | -11 -10 -10 -10 -9 -8 -7 -7 -7 -5 -4 -4 -4 -4 -3 ------- Run | Yrd Mat Min Exi Min Mat Fac Sto Rec Fac Fac Upp Upp Zhi Pro Traps Triggered 19 | . 5 . . . 2 4 2 . 4 2 . . . . Indirectly . | . . . . . . . . . . . . . . . Trap Hack Attempts . | . . . . . . . . . . . . . . . Triggered . | . . . . . . . . . . . . . . . Disarmed . | . . . . . . . . . . . . . . . Reprogrammed . | . . . . . . . . . . . . . . . Reused . | . . . . . . . . . . . . . . . Traps Extracted . | . . . . . . . . . . . . . . . Installed . | . . . . . . . . . . . . . . . Triggered 1 | . . . . . . 1 . . . . . . . . Machines | -11 -10 -10 -10 -9 -8 -7 -7 -7 -5 -4 -4 -4 -4 -3 ---------- Run | Yrd Mat Min Exi Min Mat Fac Sto Rec Fac Fac Upp Upp Zhi Pro Machines Disabled 22 | . . . . . 3 . 4 . 13 1 . 1 . . Max in Single Turn 4 | . . . . . 1 . 1 . 4 1 . 1 . . Garrison Access 6 | . . . . . 1 2 1 . 1 1 . . . . Machines Repaired . | . . . . . . . . . . . . . . . Machines Dismantled . | . . . . . . . . . . . . . . . Machines Sabotaged . | . . . . . . . . . . . . . . . Overloaded Fab Kills . | . . . . . . . . . . . . . . . Hacking | -11 -10 -10 -10 -9 -8 -7 -7 -7 -5 -4 -4 -4 -4 -3 --------- Run | Yrd Mat Min Exi Min Mat Fac Sto Rec Fac Fac Upp Upp Zhi Pro Machines Accessed 44 | . 5 . 1 . 12 5 6 5 5 4 . 1 . . Terminals 31 | . 5 . . . 9 3 5 4 3 2 . . . . Fabricators 1 | . . . . . . . . . 1 . . . . . Repair Stations 2 | . . . . . 1 . . . . 1 . . . . Recycling Units 1 | . . . . . . . . 1 . . . . . . Scanalyzers 1 | . . . . . 1 . . . . . . . . . Garrison Access 6 | . . . . . 1 2 1 . 1 1 . . . . Total Hacks 110 | . 18 . 1 . 37 13 10 11 10 9 . 1 . . Successful 44 | . 5 . 1 . 18 6 5 1 2 5 . 1 . . Failed 66 | . 13 . . . 19 7 5 10 8 4 . . . . Catastrophic 14 | . 2 . . . 2 3 1 2 2 2 . . . . Database Lockouts . | . . . . . . . . . . . . . . . Manual 75 | . 18 . 1 . 24 8 7 4 10 3 . . . . Terminals 82 | . 18 . . . 29 8 9 9 5 4 . . . . Fabricators 2 | . . . . . . . . . 2 . . . . . Repair Stations 6 | . . . . . 2 . . . . 4 . . . . Recycling Units 2 | . . . . . . . . 2 . . . . . . Scanalyzers 4 | . . . . . 4 . . . . . . . . . Garrison Access 12 | . . . . . 2 5 1 . 3 1 . . . . Terminal Hacks 18 | . 1 . 1 . 6 2 3 1 1 2 . 1 . . Record 1 | . . . . . . . . . . . . 1 . . Open Door 2 | . . . . . . . 2 . . . . . . . Level Access Points 1 | . . . . . 1 . . . . . . . . . Terminal Index 7 | . 1 . . . 1 1 1 1 1 1 . . . . Alert Level 2 | . . . . . . 1 . . . 1 . . . . Unreport Threat 2 | . . . . . 2 . . . . . . . . . Zone Layout 2 | . . . . . 2 . . . . . . . . . Derelict Proto ID Bank 1 | . . . 1 . . . . . . . . . . . Fabricator Hacks . | . . . . . . . . . . . . . . . Repair Station Hacks 4 | . . . . . 2 . . . . 2 . . . . Scan Component 2 | . . . . . 1 . . . . 1 . . . . Repair 2 | . . . . . 1 . . . . 1 . . . . Recycling Unit Hacks . | . . . . . . . . . . . . . . . Scanalyzer 4 | . . . . . 4 . . . . . . . . . Insert Component 2 | . . . . . 2 . . . . . . . . . Analyze 2 | . . . . . 2 . . . . . . . . . Garrison Access Hacks 3 | . . . . . 1 . 1 . . 1 . . . . Seal Access 3 | . . . . . 1 . 1 . . 1 . . . . Unauthorized Hacks 15 | . 4 . . . 5 4 1 . 1 . . . . . Terminals 12 | . 4 . . . 5 2 1 . . . . . . . Track 1 | . 1 . . . . . . . . . . . . . Botnet 9 | . 2 . . . 4 2 1 . . . . . . . Operators 2 | . 1 . . . 1 . . . . . . . . . Fabricators . | . . . . . . . . . . . . . . . Repair Stations . | . . . . . . . . . . . . . . . Recycling Units . | . . . . . . . . . . . . . . . Scanalyzers . | . . . . . . . . . . . . . . . Garrison Access 3 | . . . . . . 2 . . 1 . . . . . Jam 3 | . . . . . . 2 . . 1 . . . . . Data Cores Recovered 2 | . . . . . 1 . 1 . . . . . . . Used 1 | . . . . . 1 . . . . . . . . . Hacking Detections 36 | . 5 . . . 10 5 4 5 4 3 . . . . Full Trace Events 6 | . . . . . 3 1 . . 1 1 . . . . Feedback Events . | . . . . . . . . . . . . . . . Feedback Blocked . | . . . . . . . . . . . . . . . Robot Schematics Acquired . | . . . . . . . . . . . . . . . Robots Built . | . . . . . . . . . . . . . . . Authchips . | . . . . . . . . . . . . . . . Time . | . . . . . . . . . . . . . . . Total Robot Build Rating . | . . . . . . . . . . . . . . . Part Schematics Acquired 1 | . . . . . 1 . . . . . . . . . Parts Built . | . . . . . . . . . . . . . . . Authchips . | . . . . . . . . . . . . . . . Time . | . . . . . . . . . . . . . . . Total Part Build Rating . | . . . . . . . . . . . . . . . Parts Repaired 2 | . . . . . 1 . . . . 1 . . . . Time 75 | . . . . . 50 . . . . 25 . . . . Parts Recycled . | . . . . . . . . . . . . . . . Recycled Matter . | . . . . . . . . . . . . . . . Retrieved Matter . | . . . . . . . . . . . . . . . Retrieved Components . | . . . . . . . . . . . . . . . Parts Scanalyzed 2 | . . . . . 2 . . . . . . . . . Part Schematics Acquired 1 | . . . . . 1 . . . . . . . . . Parts Damaged . | . . . . . . . . . . . . . . . Bothacking | -11 -10 -10 -10 -9 -8 -7 -7 -7 -5 -4 -4 -4 -4 -3 ------------ Run | Yrd Mat Min Exi Min Mat Fac Sto Rec Fac Fac Upp Upp Zhi Pro Used RIF Installer . | . . . . . . . . . . . . . . . Robots Hacked . | . . . . . . . . . . . . . . . Non-combat . | . . . . . . . . . . . . . . . Combat . | . . . . . . . . . . . . . . . Robot Hacks Applied . | . . . . . . . . . . . . . . . Relay Couplers Released 3 | . . . . . . . . . 3 . . . . . Programmers 3 | . . . . . . . . . 3 . . . . . Fabnet Peak Effective % . | . . . . . . . . . . . . . . . Robots Rewired . | . . . . . . . . . . . . . . . Allies Hacked . | . . . . . . . . . . . . . . . Hacks Repelled . | . . . . . . . . . . . . . . . Allies | -11 -10 -10 -10 -9 -8 -7 -7 -7 -5 -4 -4 -4 -4 -3 -------- Run | Yrd Mat Min Exi Min Mat Fac Sto Rec Fac Fac Upp Upp Zhi Pro Total Allies 15 | . . 5 . . . . 10 . . . . . . . Largest Group 10 | . . 3 3 1 1 . 10 . . . . . . . Highest-Rated Group 173 | . . 67 67 16 16 . 173 . . . . . . . Highest-Rated Ally 31 | . . 31 31 16 16 . 29 . . . . . . . Total Orders 7 | . . . . . . . . . . . . . . 7 EXPLORE 5 | . . . . . . . . . . . . . . 5 RETURN 2 | . . . . . . . . . . . . . . 2 Ally Attacks 96 | . . 10 . . 28 12 26 . . 20 . . . . Total Damage 3209 | . . 95 . . 1381 511 333 . . 889 . . . . Kills 25 | . . 3 . . 12 3 2 . . 5 . . . . Allies Corrupted . | . . . . . . . . . . . . . . . Allies Melted . | . . . . . . . . . . . . . . . Turrets Deployed 3 | . . . . . 1 1 . . . 1 . . . . Intel | -11 -10 -10 -10 -9 -8 -7 -7 -7 -5 -4 -4 -4 -4 -3 ------- Run | Yrd Mat Min Exi Min Mat Fac Sto Rec Fac Fac Upp Upp Zhi Pro Robot Analysis Total . | . . . . . . . . . . . . . . . Derelict Logs Recovered 2 | . . 1 . . . . . . . . 1 . . . Drone Launches 6 | . . . . . . . . . . . . . . 6 Drone Recoveries 6 | . . . . . . . . . . . . . . 6 Exploration | -11 -10 -10 -10 -9 -8 -7 -7 -7 -5 -4 -4 -4 -4 -3 ------------- Run | Yrd Mat Min Exi Min Mat Fac Sto Rec Fac Fac Upp Upp Zhi Pro Turns Passed 19998 | 54 1300 981 1205 135 3430 1936 915 651 2464 1400 1789 1277 1788 673 Spaces Moved 8665 | 30 665 578 609 55 1399 1099 432 411 1010 450 1008 355 210 354 Core 315 | . . . . . . . . . . . . 62 210 43 Treads 4863 | . 344 578 609 55 497 653 432 411 982 38 . 264 . . Legs 2388 | 30 321 . . . 763 446 . . . 71 728 29 . . Wheels . | . . . . . . . . . . . . . . . Hover 139 | . . . . . 139 . . . . . . . . . Flight 960 | . . . . . . . . . 28 341 280 . . 311 Fastest Speed 31 | 120 120 160 160 240 130 130 148 145 155 145 120 180 750 31 Average Speed 201 | 120 157 160 194 240 202 153 156 145 203 254 171 326 840 148 Slowest Speed 1200 | 120 190 160 240 240 470 410 161 148 305 417 200 1050 1000 1200 Overloaded Moves . | . . . . . . . . . . . . . . . Propulsion Burnouts . | . . . . . . . . . . . . . . . Robots Hopped 7 | . . . . . 7 . . . . . . . . . Cave-ins Triggered . | . . . . . . . . . . . . . . . Teleports 1 | . . . . . . . . . . . . . 1 . Exploration Rate (%) 60 | 3 79 98 88 18 93 29 72 87 28 13 98 54 62 82 Regions Visited 14 Branch Regions 9 Pre-discovered Areas 2 | . . 1 . . . . . . . . 1 . . . Known Exits Taken 6 | . . . . . 1 . . . 1 1 1 1 1 . Unknown Exits Taken 8 | 1 1 1 1 1 . 1 1 1 . . . . . . Scrap Searched 12 | . . 3 . 1 . . . . . . 3 2 . 3 Spaces Dug 79 | . 5 . . . 12 26 1 . 20 10 3 . . 2 Terrain Destroyed 353 | . 5 31 . . 26 27 39 . 35 61 75 52 . 2 Melee 74 | . . . . . 12 26 1 . 20 10 3 . . 2 Projectile 59 | . 5 . . . 1 1 14 . 10 18 7 3 . . AOE 218 | . . 31 . . 13 . 22 . 5 33 65 49 . . Terrain Rammed . | . . . . . . . . . . . . . . . Walls Destroyed . | . . . . . . . . . . . . . . . Machines Disabled . | . . . . . . . . . . . . . . . Actions | -11 -10 -10 -10 -9 -8 -7 -7 -7 -5 -4 -4 -4 -4 -3 --------- Run | Yrd Mat Min Exi Min Mat Fac Sto Rec Fac Fac Upp Upp Zhi Pro Total 10224 | 37 830 624 634 59 1739 1259 561 441 1264 606 1037 427 228 478 Wait 476 | 1 65 24 4 1 80 25 37 2 113 57 1 4 . 62 Move 8637 | 29 664 577 608 54 1384 1098 431 410 1009 449 1007 354 209 354 Hop 7 | . . . . . 7 . . . . . . . . . Pick Up 156 | 1 20 4 10 2 33 15 7 4 22 8 7 15 1 7 Fast Attach 41 | . 1 . . . 6 9 1 2 2 2 . 3 5 10 Attach 70 | . 2 1 . 2 12 5 3 . 11 10 3 13 1 7 Detach 13 | . . . 2 . 1 1 . . 1 1 1 . 5 1 Swap 95 | . 14 5 2 . 33 16 9 2 4 3 2 . . 5 Drop 138 | . 13 4 8 . 38 23 8 7 16 11 . 1 . 9 Fire 443 | 6 49 7 . . 121 38 60 13 59 44 12 24 . 10 Melee 118 | . . . . . 18 29 2 . 22 11 4 13 7 12 Ram 1 | . . . . . . . . . . . . . . 1 Kick 9 | . 2 . . . 6 . . . . 1 . . . . Crush 11 | . . 2 . . . . 3 1 5 . . . . . Escape Stasis 9 | . . . . . . . . . . 9 . . . . Rewire . | . . . . . . . . . . . . . . . Trap . | . . . . . . . . . . . . . . . Miscellaneous . | . . . . . . . . . . . . . . . Route ------- -11/Scrapyard -10/Materials (discovered 2 exits: [*Mat] / [*Min]) -10/Mines (discovered 3 exits: [*Mat x2] / *Exi) -10/Exiles -9/Mines -8/Materials (discovered 3 exits: *Fac x3) -7/Factory (discovered 2 exits: [*Fac] / *Sto) -7/Storage (discovered 2 exits: [*Fac] / *Rec) -7/Recycling -5/Factory -4/Factory -4/Upper Caves -4/Upper Caves -4/Zhirov -3/Proximity Caves (discovered 1 exit: [*Res]) History --------- Turn | Location | Event 19 | -11/Scrapyard | Discovered new exit (range 3) 55 | -11/Scrapyard | Entered Materials 305 | -10/Materials | Build established: Mutant 435 | -10/Materials | Discovered new exit (range 8) 657 | -10/Materials | Build established: Scavenger-Mutant 675 | -10/Materials | Discovered new exit (range 3) 1019 | -10/Materials | Build established: Mutant 1355 | -10/Materials | Entered Mines 1373 | -10/Mines | Joined a pair of Derelicts in attacking an 0b10 outpost 1515 | -10/Mines | Discovered new exit (range 12) 1530 | -10/Mines | Assisted by bots powering up and referring to "LRC-V3" 1659 | -10/Mines | Assembled infested the area 1703 | -10/Mines | Destroyed 9 combat bots 1820 | -10/Mines | Core integrity fell below 50% 1850 | -10/Mines | Lost 3 allies 2117 | -10/Mines | Discovered new exit (range 8) 2319 | -10/Mines | Deemed a non-threat by the Exiles lab entrance 2320 | -10/Mines | Discovered new exit (range 5) 2336 | -10/Mines | Entered Exiles 2336 | -10/Exiles | Accompanied by 3 allies 2366 | -10/Exiles | Led the pair of lost Derelicts to a safe place 2380 | -10/Exiles | Met 8R-AWN 2407 | -10/Exiles | Met EX-HEX 2450 | -10/Exiles | Met EX-BIN 2470 | -10/Exiles | Aligned with FarCom system 2471 | -10/Exiles | Given EX-Vault access code 2510 | -10/Exiles | Opened EX-Vault 2518 | -10/Exiles | Found Deploy-a-Sentry 2540 | -10/Exiles | Found Deploy-a-Sentry 2543 | -10/Exiles | Found Deploy-a-Sentry 2579 | -10/Exiles | Warned to stay clear of 0b10 Research branches 2623 | -10/Exiles | Met EX-DEC 2675 | -10/Exiles | Visited The Gauntlet 3059 | -10/Exiles | Discovered new exit (range 10) 3541 | -10/Exiles | Left Exiles lab with Deploy-a-Sentry 3541 | -10/Exiles | Entered Mines 3541 | -9/Mines | Accompanied by 1 ally 3655 | -9/Mines | Discovered new exit (range 6) 3664 | -9/Mines | Received a Rocket Launcher from a helpful Derelict 3676 | -9/Mines | Entered Materials 3676 | -8/Materials | Accompanied by 1 ally 3676 | -8/Materials | Evolved 4 slots: Propulsion x1, Utility x2, Weapon x1 4612 | -8/Materials | DAS Turret deployed 5324 | -8/Materials | Discovered new exit (range 14) 5333 | -8/Materials | Identified exit to Factory 5391 | -8/Materials | Repaired Beamcaster 5552 | -8/Materials | Lost 8 parts (1p2n2u3w) 5773 | -8/Materials | Build established: Skirmisher 5954 | -8/Materials | Core integrity fell below 50% 6136 | -8/Materials | Build established: Scavenger-Skirmisher 6476 | -8/Materials | First assault squad dispatched 7023 | -8/Materials | Build established: Mutant 7106 | -8/Materials | Entered Factory 7106 | -7/Factory | Evolved 2 slots: Power x1, Propulsion x1 7386 | -7/Factory | Garrison activated, responded to threat 7416 | -7/Factory | DAS Turret deployed 8132 | -7/Factory | Discovered new exit (range 16) 8929 | -7/Factory | Discovered new exit (range 14) 9042 | -7/Factory | Entered Storage 9232 | -7/Storage | Build established: Skirmisher 9448 | -7/Storage | Destroyed 7 combat bots 9677 | -7/Storage | Assisted by bots powering up and referring to "LRC-V3" 9731 | -7/Storage | Discovered new exit (range 10) 9842 | -7/Storage | First assault squad dispatched 9913 | -7/Storage | Lost 10 allies 9951 | -7/Storage | Used back door to open Recycling access 9951 | -7/Storage | Discovered new exit (range 5) 9957 | -7/Storage | Entered Recycling 9958 | -7/Recycling | Found Scrap Engine 10166 | -7/Recycling | Build established: Mutant 10586 | -7/Recycling | Discovered new exit (range 13) 10608 | -7/Recycling | Entered Factory 10608 | -5/Factory | Evolved 4 slots: Utility x3, Weapon x1 10910 | -5/Factory | Build established: Skirmisher 12527 | -5/Factory | Lost 3 parts (2n1u) 12544 | -5/Factory | Discovered new exit (range 15) 12581 | -5/Factory | Identified exit to Factory 13008 | -5/Factory | First assault squad dispatched 13072 | -5/Factory | Entered another Factory area 13072 | -4/Factory | Evolved 2 slots: Utility x2 13629 | -4/Factory | Discovered new exit (range 6) 13637 | -4/Factory | Identified exit to Upper Caves 13807 | -4/Factory | System corruption reached 10% 14067 | -4/Factory | Repaired Lyr. Medium Armor Plating 14216 | -4/Factory | DAS Turret deployed 14248 | -4/Factory | Garrison activated, responded to threat 14472 | -4/Factory | Entered Upper Caves 14679 | -4/Upper Caves | Attracted the attention of an 0b10 outpost 14680 | -4/Upper Caves | Core integrity fell below 50% 14714 | -4/Upper Caves | Destroyed 11 combat bots 14945 | -4/Upper Caves | Build established: Gunner 15378 | -4/Upper Caves | Learned location of Quarantine (-2) 16165 | -4/Upper Caves | Encountered a Warlord checkpoint 16200 | -4/Upper Caves | Discovered new exit (range 15) 16225 | -4/Upper Caves | Identified exit to Upper Caves 16261 | -4/Upper Caves | Entered another Upper Caves area 16361 | -4/Upper Caves | Lost 4 parts (2u2w) 16460 | -4/Upper Caves | Attracted the attention of an 0b10 checkpoint 16537 | -4/Upper Caves | Lost 5 parts (1n3u1w) 16576 | -4/Upper Caves | Build established: Mutant 16651 | -4/Upper Caves | Found Alien Artifact 16655 | -4/Upper Caves | Identified Dimensional Node Initializer 16655 | -4/Upper Caves | Initialized slip node 17011 | -4/Upper Caves | Core integrity fell below 20% 17046 | -4/Upper Caves | Lost 12 parts (2p2n6u2w) 17301 | -4/Upper Caves | Build established: Gladiator 17357 | -4/Upper Caves | Discovered new exit (range 8) 17486 | -4/Upper Caves | Identified exit to Zhirov 17538 | -4/Upper Caves | Entered Zhirov 17540 | -4/Zhirov | Discovered new exit (range 3) 17675 | -4/Zhirov | Met Zhirov 17827 | -4/Zhirov | Build established: Mutant 17923 | -4/Zhirov | Zhirov requested help retrieving the SGEMP Prototype 18035 | -4/Zhirov | Found Alien Artifact 18035 | -4/Zhirov | Identified Integrated Reactor 18035 | -4/Zhirov | Installed Integrated Reactor, increased core energy generation (+10) 18119 | -4/Zhirov | Found Alien Artifact 18119 | -4/Zhirov | Identified Transdimensional Reconstructor 18119 | -4/Zhirov | Warped through subspace 18119 | -4/Zhirov | Identified exit to Proximity Caves 19326 | -4/Zhirov | Entered Proximity Caves 19608 | -3/Proximity Caves | Lost 6 parts (1p3u2w) 19997 | -3/Proximity Caves | Discovered new exit (range 11) 19999 | -3/Proximity Caves | Destroyed by S-43 Plague with Heavy Machine Gun Last Messages --------------- 19974_ System corrupted: Heat flow error (+159). 19980_ Advanced Drone retrieved by Adv. Drone Bay. 19982_ S-43 Plague destroyed. 19983_ Xenon Bombardment Thruster destroyed. 19986_ Lgt. Antimatter Reactor fries itself beyond repair. 19986_ Acquired Corrupted Xenon Bombardment Thruster. 19986_ Integrated Corrupted Xenon Bombardment Thruster (+1). 19986_ Complication: Energy sink damages Corrupted Xenon Bombardment Thruster (-5). 19990_ A GTJ<=/WKU0QP5>X78FID:B 19990_ Dropped Adv. Drone Bay. 19990_ Tesla Rifle destroyed. 19991_ Corrupted Xenon Bombardment Thruster fries itself beyond repair. 19992_ Slammed into S-43 Plague. 19993_ Acquired 35 matter. 19994_ Xenon Bombardment Thruster destroyed. 19997_ EXIT=FOUND 19997_ Antimatter-Fission Reactor destroyed. 19997_ Scrap Engine damaged due to network destabilization (-8). 19998_ Xenon Bombardment Thruster destroyed. 19999_ Mak. Sword destroyed. Map ----- +----------------------------------------------------+ | ?????????????????????????????????????????????????? | | ?????????????????????????????????????????????????? | | ?????????????????????????????????????????????????? | | ?????????????????????????????????????????????????? | | ?????????????????????????????????????????????????? | | ?????????????????????????????????????????????????? | | "#???????????????????????????????????????????????? | | "#???????????????????????????????????????????????? | | "#???????????????????????????????????????????????? | | ###?????????#####????????????????????????????????? | | # #?????????# ##????????????????????#??????????? | | " #?####?????# ##?????????????????? #??????????? | | #?# ##????# # ####??????##?????? #??????????? | | ### ###### ##????? ###?## #??????????? | | # #???? ? ????????????? | | # ## #?### ?? ?????????????? | | ###### #### ### #???????????????? | | ## ##????## ### # #???????????????? | | ## ##??????# # ## # #????????????????? | | #### #?####### # # #????????????????? | | #??##### ### s# #????????????????? | | #?????# ### !p s #????????????????? | | ##?????# #### #####????????????????? | | #????### #??## ##s #????????????????????? | | ###### #???# ##s ##????????????????????? | | ##??# ##@##?????????????????????? | | ##?# ## #??????????????????????? | | ### ## #??????????????????????? | | ## ??????????????????????? | | ## #??????????????????????? | | ##### ######## #??????????????????????? | | #####?#######?????? #??????????????????????? | | ###### ##????????? ??????????????????????? | | ###??????? ??????????????????????? | | ####????